[Event "Titled Tuesday Blitz July 4 Early 2023"]
[White "So, Wesley"]
[Black "Aravindh, Chithambaram VR."]
[WhiteFideId "5202213"]
[BlackFideId "5072786"]
[WhiteElo "3081"]
[BlackElo "2905"]
[Result "0-1"]
[Round "7"]
[TimeControl "180+2"]
[Date "2023.07.04"]
[WhiteClock "0:00:36"]
[BlackClock "0:00:10"]
[Board "17"]

1. e4 {[%clk 0:02:52]}  c6 {[%clk 0:02:59]} 2. d4 {[%clk 0:02:51]}  d5 {[%clk 0:03:00]} 3. e5 {[%clk 0:02:51]}  Bf5 {[%clk 0:02:58]} 4. Nd2 {[%clk 0:02:48]}  e6 {[%clk 0:02:57]} 5. Nb3 {[%clk 0:02:49]}  Nd7 {[%clk 0:02:54]} 6. Nf3 {[%clk 0:02:48]}  Ne7 {[%clk 0:02:53]} 7. Be2 {[%clk 0:02:48]}  Ng6 {[%clk 0:02:53]} 8. O-O {[%clk 0:02:45]}  f6 {[%clk 0:02:53]} 9. Re1 {[%clk 0:02:37]}  fxe5 {[%clk 0:02:51]} 10. Nxe5 {[%clk 0:02:33]}  Bd6 {[%clk 0:02:18]} 11. g4 {[%clk 0:02:21]}  Be4 {[%clk 0:02:16]} 12. f3 {[%clk 0:02:20]}  Qh4 {[%clk 0:01:59]} 13. fxe4 {[%clk 0:02:12]}  Ndxe5 {[%clk 0:01:55]} 14. Qd2 {[%clk 0:01:17]}  Nc4 {[%clk 0:00:46]} 15. Bxc4 {[%clk 0:01:15]}  dxc4 {[%clk 0:00:47]} 16. e5 {[%clk 0:01:15]}  Be7 {[%clk 0:00:15]} 17. Na5 {[%clk 0:01:10]}  O-O {[%clk 0:00:15]} 18. Qe2 {[%clk 0:00:50]}  Bb4 {[%clk 0:00:14]} 19. Bd2 {[%clk 0:00:50]}  Nf4 {[%clk 0:00:09]} 20. Bxf4 {[%clk 0:00:39]}  Rxf4 {[%clk 0:00:10]} 21. Nxc4 {[%clk 0:00:40]}  Bxe1 {[%clk 0:00:09]} 22. Rxe1 {[%clk 0:00:41]}  Qxg4+ {[%clk 0:00:09]} 23. Qxg4 {[%clk 0:00:36]}  Rxg4+ {[%clk 0:00:10]} 0-1


[Site "https://www.chess.com"]

[Event "Titled Tuesday Blitz July 4 Early 2023"]
[White "Tahbaz, Arash"]
[Black "Harsha Bharathakoti"]
[WhiteFideId "12528846"]
[BlackFideId "5078776"]
[WhiteElo "3029"]
[BlackElo "2860"]
[Result "0-1"]
[Round "7"]
[TimeControl "180+2"]
[Date "2023.07.04"]
[WhiteClock "0:00:00"]
[BlackClock "0:00:12"]
[Board "19"]

1. Nf3 {[%clk 0:02:59]}  d5 {[%clk 0:02:57]} 2. g3 {[%clk 0:03:00]}  Nd7 {[%clk 0:02:56]} 3. Bg2 {[%clk 0:02:56]}  e5 {[%clk 0:02:56]} 4. O-O {[%clk 0:02:57]}  Ngf6 {[%clk 0:02:56]} 5. d3 {[%clk 0:02:50]}  c6 {[%clk 0:02:51]} 6. Nbd2 {[%clk 0:02:48]}  Bc5 {[%clk 0:02:43]} 7. e4 {[%clk 0:02:44]}  O-O {[%clk 0:02:39]} 8. b3 {[%clk 0:02:41]}  dxe4 {[%clk 0:02:30]} 9. dxe4 {[%clk 0:02:42]}  b5 {[%clk 0:02:30]} 10. Bb2 {[%clk 0:02:41]}  Qc7 {[%clk 0:02:28]} 11. a4 {[%clk 0:02:39]}  Bb7 {[%clk 0:02:23]} 12. Qe2 {[%clk 0:02:38]}  a6 {[%clk 0:02:23]} 13. Ne1 {[%clk 0:01:53]}  Rfe8 {[%clk 0:02:19]} 14. Nd3 {[%clk 0:01:53]}  Bd4 {[%clk 0:02:00]} 15. Bxd4 {[%clk 0:01:43]}  exd4 {[%clk 0:02:00]} 16. Qd1 {[%clk 0:01:27]}  c5 {[%clk 0:01:59]} 17. axb5 {[%clk 0:01:25]}  axb5 {[%clk 0:01:59]} 18. Rxa8 {[%clk 0:01:25]}  Bxa8 {[%clk 0:01:59]} 19. Re1 {[%clk 0:01:15]}  c4 {[%clk 0:01:49]} 20. bxc4 {[%clk 0:01:16]}  bxc4 {[%clk 0:01:49]} 21. Nf4 {[%clk 0:01:17]}  Ne5 {[%clk 0:01:32]} 22. Nd5 {[%clk 0:01:06]}  Nxd5 {[%clk 0:00:53]} 23. exd5 {[%clk 0:01:07]}  Rd8 {[%clk 0:00:54]} 24. Qe2 {[%clk 0:01:01]}  f6 {[%clk 0:00:41]} 25. f4 {[%clk 0:00:47]}  d3 {[%clk 0:00:41]} 26. cxd3 {[%clk 0:00:40]}  Nxd3 {[%clk 0:00:41]} 27. Qe6+ {[%clk 0:00:33]}  Kf8 {[%clk 0:00:27]} 28. Re2 {[%clk 0:00:18]}  c3 {[%clk 0:00:18]} 29. d6 {[%clk 0:00:10]}  Qxd6 {[%clk 0:00:16]} 30. Qxd6+ {[%clk 0:00:10]}  Rxd6 {[%clk 0:00:17]} 31. Bxa8 {[%clk 0:00:11]}  Nxf4 {[%clk 0:00:12]} 32. gxf4 {[%clk 0:00:02]}  cxd2 {[%clk 0:00:13]} 33. Rxd2 {[%clk 0:00:01]}  Rxd2 {[%clk 0:00:14]} 34. Be4 {[%clk 0:00:02]}  h6 {[%clk 0:00:12]} 35. Bf3 {[%clk 0:00:00]}  Rd4 {[%clk 0:00:12]} 0-1


[Site "https://www.chess.com"]

[Event "Titled Tuesday Blitz July 4 Early 2023"]
[White "Mekhitarian, Krikor Sevag"]
[Black "Deac, Bogdan-Daniel"]
[WhiteFideId "2107660"]
[BlackFideId "1226380"]
[WhiteElo "2788"]
[BlackElo "3005"]
[Result "0-1"]
[Round "7"]
[TimeControl "180+2"]
[Date "2023.07.04"]
[WhiteClock "0:00:00"]
[BlackClock "0:00:06"]
[Board "21"]

1. Nf3 {[%clk 0:03:00]}  d5 {[%clk 0:02:59]} 2. c4 {[%clk 0:02:58]}  e6 {[%clk 0:02:59]} 3. d4 {[%clk 0:02:57]}  Nf6 {[%clk 0:02:59]} 4. cxd5 {[%clk 0:02:58]}  exd5 {[%clk 0:03:00]} 5. Nc3 {[%clk 0:02:59]}  c6 {[%clk 0:02:56]} 6. Bf4 {[%clk 0:02:59]}  Bf5 {[%clk 0:02:55]} 7. e3 {[%clk 0:02:56]}  Nbd7 {[%clk 0:02:54]} 8. h3 {[%clk 0:02:56]}  h6 {[%clk 0:02:32]} 9. g4 {[%clk 0:02:56]}  Be6 {[%clk 0:02:30]} 10. Bd3 {[%clk 0:02:55]}  Be7 {[%clk 0:02:29]} 11. Qc2 {[%clk 0:02:51]}  Qa5 {[%clk 0:02:24]} 12. O-O-O {[%clk 0:02:48]}  Nb6 {[%clk 0:02:24]} 13. Kb1 {[%clk 0:02:45]}  Nc4 {[%clk 0:02:06]} 14. Bxc4 {[%clk 0:02:27]}  dxc4 {[%clk 0:02:06]} 15. e4 {[%clk 0:02:27]}  Rd8 {[%clk 0:02:02]} 16. g5 {[%clk 0:02:13]}  hxg5 {[%clk 0:01:39]} 17. Nxg5 {[%clk 0:02:12]}  Bc8 {[%clk 0:01:39]} 18. h4 {[%clk 0:01:52]}  b5 {[%clk 0:01:34]} 19. d5 {[%clk 0:01:47]}  Nh5 {[%clk 0:01:28]} 20. Be3 {[%clk 0:01:27]}  b4 {[%clk 0:01:27]} 21. Ne2 {[%clk 0:01:10]}  cxd5 {[%clk 0:01:22]} 22. exd5 {[%clk 0:01:10]}  b3 {[%clk 0:01:13]} 23. axb3 {[%clk 0:00:50]}  cxb3 {[%clk 0:01:13]} 24. Qxb3 {[%clk 0:00:46]}  Bf5+ {[%clk 0:00:53]} 25. Kc1 {[%clk 0:00:46]}  O-O {[%clk 0:00:53]} 26. Nc3 {[%clk 0:00:43]}  Bb4 {[%clk 0:00:48]} 27. Bd4 {[%clk 0:00:37]}  Nf4 {[%clk 0:00:40]} 28. Rhe1 {[%clk 0:00:23]}  Rxd5 {[%clk 0:00:31]} 29. Nge4 {[%clk 0:00:07]}  Qa1+ {[%clk 0:00:22]} 30. Kd2 {[%clk 0:00:07]}  Rxd4+ {[%clk 0:00:22]} 31. Ke3 {[%clk 0:00:08]}  Ng2+ {[%clk 0:00:14]} 32. Kxd4 {[%clk 0:00:07]}  Qa5 {[%clk 0:00:12]} 33. Nd5 {[%clk 0:00:03]}  Bxe1 {[%clk 0:00:08]} 34. Ne7+ {[%clk 0:00:03]}  Kh8 {[%clk 0:00:08]} 35. Nxf5 {[%clk 0:00:03]}  Qxf5 {[%clk 0:00:08]} 36. Qc4 {[%clk 0:00:01]}  Bxf2+ {[%clk 0:00:07]} 37. Kd3 {[%clk 0:00:01]}  Qf3+ {[%clk 0:00:06]} 38. Kc2 {[%clk 0:00:00]}  Ne3+ {[%clk 0:00:06]} 0-1


[Site "https://www.chess.com"]

[Event "Titled Tuesday Blitz July 4 Early 2023"]
[White "Galchenko, Matvey"]
[Black "Ahmad, Khagan"]
[WhiteFideId "24175480"]
[BlackFideId "13431552"]
[WhiteElo "2874"]
[BlackElo "2664"]
[Result "1-0"]
[Round "7"]
[TimeControl "180+2"]
[Date "2023.07.04"]
[WhiteClock "0:00:11"]
[BlackClock "0:00:00"]
[Board "28"]

1. f4 {[%clk 0:03:00]}  d5 {[%clk 0:02:48]} 2. Nf3 {[%clk 0:03:00]}  Nc6 {[%clk 0:02:29]} 3. e3 {[%clk 0:02:56]}  Bg4 {[%clk 0:02:23]} 4. Bb5 {[%clk 0:02:55]}  e6 {[%clk 0:02:08]} 5. O-O {[%clk 0:02:55]}  Ne7 {[%clk 0:02:03]} 6. b3 {[%clk 0:02:52]}  a6 {[%clk 0:01:46]} 7. Be2 {[%clk 0:02:51]}  Bxf3 {[%clk 0:01:23]} 8. Bxf3 {[%clk 0:02:51]}  e5 {[%clk 0:01:22]} 9. fxe5 {[%clk 0:02:48]}  Nxe5 {[%clk 0:01:23]} 10. Bb2 {[%clk 0:02:49]}  Nxf3+ {[%clk 0:01:22]} 11. Qxf3 {[%clk 0:02:50]}  f6 {[%clk 0:01:17]} 12. Nc3 {[%clk 0:02:45]}  Qd7 {[%clk 0:01:16]} 13. Qh5+ {[%clk 0:02:44]}  g6 {[%clk 0:01:13]} 14. Qh4 {[%clk 0:02:39]}  Bg7 {[%clk 0:01:10]} 15. Ne2 {[%clk 0:02:39]}  Nf5 {[%clk 0:01:10]} 16. Qh3 {[%clk 0:02:24]}  O-O-O {[%clk 0:01:03]} 17. Rf2 {[%clk 0:02:21]}  Nd6 {[%clk 0:00:58]} 18. Qxd7+ {[%clk 0:02:01]}  Rxd7 {[%clk 0:00:58]} 19. Bxf6 {[%clk 0:01:40]}  Bxf6 {[%clk 0:00:56]} 20. Rxf6 {[%clk 0:01:41]}  Ne4 {[%clk 0:00:56]} 21. Rf4 {[%clk 0:01:41]}  Nxd2 {[%clk 0:00:53]} 22. Rd1 {[%clk 0:01:22]}  Ne4 {[%clk 0:00:43]} 23. c4 {[%clk 0:01:23]}  g5 {[%clk 0:00:34]} 24. Rf5 {[%clk 0:01:13]}  dxc4 {[%clk 0:00:32]} 25. Rxd7 {[%clk 0:01:13]}  Kxd7 {[%clk 0:00:33]} 26. bxc4 {[%clk 0:01:14]}  Nd6 {[%clk 0:00:28]} 27. Rd5 {[%clk 0:01:09]}  c6 {[%clk 0:00:20]} 28. Rxg5 {[%clk 0:01:04]}  Nxc4 {[%clk 0:00:20]} 29. Rg7+ {[%clk 0:01:05]}  Kc8 {[%clk 0:00:21]} 30. e4 {[%clk 0:01:01]}  Re8 {[%clk 0:00:17]} 31. Nc3 {[%clk 0:00:55]}  h5 {[%clk 0:00:11]} 32. Rh7 {[%clk 0:00:54]}  Nd6 {[%clk 0:00:10]} 33. Rxh5 {[%clk 0:00:44]}  Nxe4 {[%clk 0:00:10]} 34. Na4 {[%clk 0:00:45]}  b5 {[%clk 0:00:10]} 35. Nb2 {[%clk 0:00:37]}  c5 {[%clk 0:00:10]} 36. a4 {[%clk 0:00:31]}  Rd8 {[%clk 0:00:06]} 37. Re5 {[%clk 0:00:21]}  Rd2 {[%clk 0:00:06]} 38. Rxe4 {[%clk 0:00:15]}  Rxb2 {[%clk 0:00:06]} 39. axb5 {[%clk 0:00:15]}  axb5 {[%clk 0:00:07]} 40. h4 {[%clk 0:00:16]}  c4 {[%clk 0:00:07]} 41. Re5 {[%clk 0:00:13]}  Kb7 {[%clk 0:00:03]} 42. h5 {[%clk 0:00:13]}  Kb6 {[%clk 0:00:03]} 43. h6 {[%clk 0:00:13]}  Ra2 {[%clk 0:00:03]} 44. Re6+ {[%clk 0:00:11]}  Kc5 {[%clk 0:00:02]} 45. Re8 {[%clk 0:00:10]}  Ra7 {[%clk 0:00:02]} 46. g4 {[%clk 0:00:11]}  Kb4 {[%clk 0:00:02]} 47. g5 {[%clk 0:00:11]}  c3 {[%clk 0:00:03]} 48. Rc8 {[%clk 0:00:11]}  Ra6 {[%clk 0:00:01]} 49. h7 {[%clk 0:00:11]}  Rg6 {[%clk 0:00:01]} 50. h8=Q {[%clk 0:00:11]}  Rxg5+ {[%clk 0:00:00]} 51. Kf2 {[%clk 0:00:11]} 1-0


[Site "https://www.chess.com"]

[Event "Titled Tuesday Blitz July 4 Early 2023"]
[White "Kamsky, Gata"]
[Black "Borgaonkar Akshay"]
[WhiteFideId "2000024"]
[BlackFideId "25639110"]
[WhiteElo "2989"]
[BlackElo "2619"]
[Result "1-0"]
[Round "7"]
[TimeControl "180+2"]
[Date "2023.07.04"]
[WhiteClock "0:00:47"]
[BlackClock "0:00:03"]
[Board "33"]

1. e4 {[%clk 0:02:58]}  c5 {[%clk 0:03:00]} 2. Nc3 {[%clk 0:02:58]}  e6 {[%clk 0:02:59]} 3. Nf3 {[%clk 0:02:58]}  Nc6 {[%clk 0:02:59]} 4. Bb5 {[%clk 0:02:57]}  Nd4 {[%clk 0:02:57]} 5. O-O {[%clk 0:02:56]}  Nxb5 {[%clk 0:02:56]} 6. Nxb5 {[%clk 0:02:55]}  a6 {[%clk 0:02:56]} 7. Na3 {[%clk 0:02:55]}  b5 {[%clk 0:02:56]} 8. c4 {[%clk 0:02:55]}  bxc4 {[%clk 0:02:49]} 9. Nxc4 {[%clk 0:02:54]}  Bb7 {[%clk 0:02:50]} 10. Re1 {[%clk 0:02:53]}  Nf6 {[%clk 0:02:48]} 11. d3 {[%clk 0:02:53]}  Be7 {[%clk 0:02:47]} 12. Qb3 {[%clk 0:02:48]}  Bc6 {[%clk 0:02:35]} 13. Nfe5 {[%clk 0:02:43]}  Bb5 {[%clk 0:02:21]} 14. a4 {[%clk 0:02:42]}  Bxc4 {[%clk 0:02:21]} 15. Nxc4 {[%clk 0:02:42]}  O-O {[%clk 0:02:21]} 16. Bf4 {[%clk 0:02:20]}  d5 {[%clk 0:02:12]} 17. Nb6 {[%clk 0:02:13]}  Ra7 {[%clk 0:02:04]} 18. a5 {[%clk 0:02:13]}  Nh5 {[%clk 0:01:46]} 19. Be3 {[%clk 0:02:10]}  d4 {[%clk 0:01:39]} 20. Bd2 {[%clk 0:02:09]}  Bg5 {[%clk 0:01:38]} 21. Qc2 {[%clk 0:02:04]}  Bxd2 {[%clk 0:01:24]} 22. Qxd2 {[%clk 0:02:04]}  Qf6 {[%clk 0:01:21]} 23. g3 {[%clk 0:02:04]}  Qg6 {[%clk 0:01:12]} 24. Rac1 {[%clk 0:02:02]}  Rc7 {[%clk 0:01:10]} 25. b4 {[%clk 0:02:00]}  f5 {[%clk 0:01:05]} 26. exf5 {[%clk 0:01:52]}  Rxf5 {[%clk 0:01:04]} 27. Kh1 {[%clk 0:01:32]}  Rcf7 {[%clk 0:00:59]} 28. Rxc5 {[%clk 0:01:31]}  Rxc5 {[%clk 0:00:45]} 29. bxc5 {[%clk 0:01:30]}  Qf5 {[%clk 0:00:46]} 30. Qe2 {[%clk 0:01:26]}  Qxc5 {[%clk 0:00:43]} 31. Qxe6 {[%clk 0:01:23]}  Qxa5 {[%clk 0:00:43]} 32. Nc4 {[%clk 0:01:19]}  Qf5 {[%clk 0:00:34]} 33. f4 {[%clk 0:01:12]}  Qxe6 {[%clk 0:00:15]} 34. Rxe6 {[%clk 0:01:11]}  Ra7 {[%clk 0:00:16]} 35. Re8+ {[%clk 0:01:08]}  Kf7 {[%clk 0:00:16]} 36. Nd6+ {[%clk 0:01:07]}  Kf6 {[%clk 0:00:15]} 37. Kg2 {[%clk 0:01:01]}  a5 {[%clk 0:00:15]} 38. Kf3 {[%clk 0:01:00]}  g6 {[%clk 0:00:14]} 39. Nb5 {[%clk 0:00:53]}  Rb7 {[%clk 0:00:12]} 40. Nxd4 {[%clk 0:00:51]}  Ng7 {[%clk 0:00:09]} 41. Ra8 {[%clk 0:00:51]}  Rd7 {[%clk 0:00:08]} 42. Ra6+ {[%clk 0:00:50]}  Kf7 {[%clk 0:00:08]} 43. Ke3 {[%clk 0:00:49]}  Re7+ {[%clk 0:00:06]} 44. Kd2 {[%clk 0:00:50]}  Rd7 {[%clk 0:00:07]} 45. Nf3 {[%clk 0:00:49]}  Rd5 {[%clk 0:00:06]} 46. Ng5+ {[%clk 0:00:47]}  Ke7 {[%clk 0:00:04]} 47. Ra7+ {[%clk 0:00:47]}  Kf8 {[%clk 0:00:05]} 48. Nxh7+ {[%clk 0:00:46]}  Ke8 {[%clk 0:00:03]} 49. Nf6+ {[%clk 0:00:47]} 1-0


[Site "https://www.chess.com"]

[Event "Titled Tuesday Blitz July 4 Early 2023"]
[White "Filgueira, Hernan"]
[Black "Andreikin, Dmitry"]
[WhiteFideId "101770"]
[BlackFideId "4158814"]
[WhiteElo "2617"]
[BlackElo "2978"]
[Result "0-1"]
[Round "7"]
[TimeControl "180+2"]
[Date "2023.07.04"]
[WhiteClock "0:00:00"]
[BlackClock "0:01:25"]
[Board "34"]

1. d4 {[%clk 0:02:59]}  Nf6 {[%clk 0:02:59]} 2. Nf3 {[%clk 0:02:58]}  g6 {[%clk 0:02:58]} 3. c4 {[%clk 0:02:56]}  Bg7 {[%clk 0:02:58]} 4. Nc3 {[%clk 0:02:55]}  O-O {[%clk 0:02:59]} 5. e4 {[%clk 0:02:51]}  d6 {[%clk 0:02:59]} 6. Be2 {[%clk 0:02:51]}  e5 {[%clk 0:02:57]} 7. O-O {[%clk 0:02:46]}  Nc6 {[%clk 0:02:57]} 8. Be3 {[%clk 0:02:45]}  h6 {[%clk 0:02:52]} 9. dxe5 {[%clk 0:02:34]}  Ng4 {[%clk 0:02:50]} 10. Bd2 {[%clk 0:02:28]}  Ngxe5 {[%clk 0:02:50]} 11. Nxe5 {[%clk 0:02:15]}  dxe5 {[%clk 0:02:51]} 12. Nd5 {[%clk 0:02:03]}  Nd4 {[%clk 0:02:48]} 13. Re1 {[%clk 0:01:37]}  c6 {[%clk 0:02:47]} 14. Nc3 {[%clk 0:01:34]}  Be6 {[%clk 0:02:45]} 15. Bf1 {[%clk 0:01:32]}  Qb6 {[%clk 0:02:45]} 16. Na4 {[%clk 0:01:29]}  Qc7 {[%clk 0:02:43]} 17. Nc5 {[%clk 0:01:27]}  Rad8 {[%clk 0:02:43]} 18. Nxe6 {[%clk 0:01:17]}  Nxe6 {[%clk 0:02:44]} 19. Qc1 {[%clk 0:01:15]}  h5 {[%clk 0:02:35]} 20. Be3 {[%clk 0:01:14]}  Rd7 {[%clk 0:02:35]} 21. c5 {[%clk 0:01:11]}  Rfd8 {[%clk 0:02:35]} 22. Bc4 {[%clk 0:01:09]}  Nd4 {[%clk 0:02:33]} 23. h3 {[%clk 0:01:05]}  Kh7 {[%clk 0:02:33]} 24. b4 {[%clk 0:00:55]}  f5 {[%clk 0:02:30]} 25. Bg5 {[%clk 0:00:50]}  f4 {[%clk 0:02:27]} 26. Bxd8 {[%clk 0:00:49]}  Qxd8 {[%clk 0:02:28]} 27. Qc3 {[%clk 0:00:38]}  Bh6 {[%clk 0:02:21]} 28. Kh2 {[%clk 0:00:34]}  f3 {[%clk 0:02:12]} 29. g3 {[%clk 0:00:33]}  h4 {[%clk 0:02:12]} 30. g4 {[%clk 0:00:27]}  Qf6 {[%clk 0:02:11]} 31. Rad1 {[%clk 0:00:20]}  Qf4+ {[%clk 0:02:09]} 32. Kh1 {[%clk 0:00:20]}  Bg5 {[%clk 0:02:07]} 33. a4 {[%clk 0:00:19]}  Kh6 {[%clk 0:02:05]} 34. b5 {[%clk 0:00:19]}  Rd8 {[%clk 0:01:58]} 35. bxc6 {[%clk 0:00:19]}  bxc6 {[%clk 0:01:59]} 36. Qb2 {[%clk 0:00:19]}  a5 {[%clk 0:01:54]} 37. Qb6 {[%clk 0:00:17]}  Qf6 {[%clk 0:01:48]} 38. Qb7 {[%clk 0:00:16]}  Bf4 {[%clk 0:01:48]} 39. Qf7 {[%clk 0:00:13]}  Qxf7 {[%clk 0:01:42]} 40. Bxf7 {[%clk 0:00:13]}  Kg5 {[%clk 0:01:43]} 41. Rb1 {[%clk 0:00:12]}  Bg3 {[%clk 0:01:34]} 42. Red1 {[%clk 0:00:05]}  Bxf2 {[%clk 0:01:32]} 43. Rb7 {[%clk 0:00:04]}  Be3 {[%clk 0:01:25]} 44. Bc4 {[%clk 0:00:03]}  Kf4 {[%clk 0:01:25]} 45. Rf7+ {[%clk 0:00:00]}  Kg3 {[%clk 0:01:25]} 0-1


[Site "https://www.chess.com"]

[Event "Titled Tuesday Blitz July 4 Early 2023"]
[White "Palczert, Matyas"]
[Black "Kramnik, Vladimir"]
[WhiteFideId "784958"]
[BlackFideId "4101588"]
[WhiteElo "2611"]
[BlackElo "2971"]
[Result "0-1"]
[Round "7"]
[TimeControl "180+2"]
[Date "2023.07.04"]
[WhiteClock "0:00:14"]
[BlackClock "0:00:38"]
[Board "35"]

1. e4 {[%clk 0:03:00]}  c5 {[%clk 0:02:56]} 2. Nf3 {[%clk 0:03:00]}  e6 {[%clk 0:02:56]} 3. g3 {[%clk 0:02:55]}  Nc6 {[%clk 0:02:52]} 4. Bg2 {[%clk 0:02:54]}  Nf6 {[%clk 0:02:52]} 5. Nc3 {[%clk 0:02:53]}  Be7 {[%clk 0:02:48]} 6. O-O {[%clk 0:02:51]}  d6 {[%clk 0:02:46]} 7. d3 {[%clk 0:02:47]}  O-O {[%clk 0:02:45]} 8. Nd2 {[%clk 0:02:46]}  Rb8 {[%clk 0:02:38]} 9. f4 {[%clk 0:02:45]}  Nd7 {[%clk 0:02:36]} 10. a4 {[%clk 0:02:43]}  a6 {[%clk 0:02:35]} 11. Nf3 {[%clk 0:02:38]}  b5 {[%clk 0:02:32]} 12. axb5 {[%clk 0:02:35]}  axb5 {[%clk 0:02:33]} 13. g4 {[%clk 0:02:27]}  b4 {[%clk 0:02:31]} 14. Ne2 {[%clk 0:02:26]}  Qb6 {[%clk 0:02:29]} 15. Be3 {[%clk 0:02:24]}  Bb7 {[%clk 0:02:22]} 16. Nd2 {[%clk 0:02:13]}  Ra8 {[%clk 0:02:16]} 17. Nc4 {[%clk 0:02:07]}  Qc7 {[%clk 0:02:15]} 18. Qd2 {[%clk 0:02:03]}  Nf6 {[%clk 0:02:10]} 19. g5 {[%clk 0:01:53]}  Rxa1 {[%clk 0:02:08]} 20. Rxa1 {[%clk 0:01:51]}  Ng4 {[%clk 0:02:09]} 21. f5 {[%clk 0:01:47]}  exf5 {[%clk 0:01:51]} 22. exf5 {[%clk 0:01:44]}  Re8 {[%clk 0:01:41]} 23. Bf4 {[%clk 0:01:37]}  Bf8 {[%clk 0:01:39]} 24. h3 {[%clk 0:01:26]}  Nge5 {[%clk 0:01:39]} 25. Nxe5 {[%clk 0:01:25]}  dxe5 {[%clk 0:01:38]} 26. Be3 {[%clk 0:01:22]}  Qc8 {[%clk 0:01:34]} 27. Rf1 {[%clk 0:01:21]}  Nd4 {[%clk 0:01:30]} 28. Bxd4 {[%clk 0:01:20]}  Bxg2 {[%clk 0:01:27]} 29. Kxg2 {[%clk 0:01:19]}  Qc6+ {[%clk 0:01:24]} 30. Rf3 {[%clk 0:01:12]}  exd4 {[%clk 0:01:17]} 31. Ng3 {[%clk 0:01:11]}  c4 {[%clk 0:01:14]} 32. Ne4 {[%clk 0:01:10]}  c3 {[%clk 0:01:14]} 33. bxc3 {[%clk 0:01:09]}  dxc3 {[%clk 0:01:12]} 34. Qe1 {[%clk 0:01:03]}  Rc8 {[%clk 0:01:04]} 35. Qb1 {[%clk 0:00:58]}  Qd5 {[%clk 0:01:00]} 36. Rf2 {[%clk 0:00:50]}  b3 {[%clk 0:00:39]} 37. cxb3 {[%clk 0:00:49]}  c2 {[%clk 0:00:39]} 38. Rxc2 {[%clk 0:00:36]}  Qxd3 {[%clk 0:00:40]} 39. Rb2 {[%clk 0:00:36]}  Qe3 {[%clk 0:00:40]} 40. Rf2 {[%clk 0:00:24]}  Rc1 {[%clk 0:00:38]} 41. Qb2 {[%clk 0:00:14]}  Qxe4+ {[%clk 0:00:38]} 0-1


[Site "https://www.chess.com"]

[Event "Titled Tuesday Blitz July 4 Early 2023"]
[White "Ibarra Jerez, Jose Carlos"]
[Black "Domingo Nunez, Ruben"]
[WhiteFideId "2226332"]
[BlackFideId "22245570"]
[WhiteElo "2896"]
[BlackElo "2610"]
[Result "1-0"]
[Round "7"]
[TimeControl "180+2"]
[Date "2023.07.04"]
[WhiteClock "0:00:26"]
[BlackClock "0:00:00"]
[Board "36"]

1. Nf3 {[%clk 0:03:00]}  g6 {[%clk 0:02:57]} 2. g3 {[%clk 0:03:00]}  Bg7 {[%clk 0:02:58]} 3. Bg2 {[%clk 0:03:00]}  Nf6 {[%clk 0:02:57]} 4. b3 {[%clk 0:03:00]}  d6 {[%clk 0:02:55]} 5. d4 {[%clk 0:02:59]}  O-O {[%clk 0:02:55]} 6. Bb2 {[%clk 0:02:59]}  Nbd7 {[%clk 0:02:56]} 7. O-O {[%clk 0:02:59]}  c5 {[%clk 0:02:57]} 8. c4 {[%clk 0:02:59]}  Rb8 {[%clk 0:02:57]} 9. Nc3 {[%clk 0:02:58]}  a6 {[%clk 0:02:57]} 10. a4 {[%clk 0:02:56]}  b6 {[%clk 0:02:58]} 11. Qd2 {[%clk 0:02:52]}  Ne8 {[%clk 0:02:58]} 12. e4 {[%clk 0:02:49]}  Nc7 {[%clk 0:02:58]} 13. d5 {[%clk 0:02:26]}  b5 {[%clk 0:02:57]} 14. Qc2 {[%clk 0:02:24]}  bxc4 {[%clk 0:02:57]} 15. bxc4 {[%clk 0:02:24]}  Ne5 {[%clk 0:02:50]} 16. Nxe5 {[%clk 0:02:06]}  Bxe5 {[%clk 0:02:51]} 17. Nd1 {[%clk 0:02:02]}  Bxb2 {[%clk 0:02:51]} 18. Nxb2 {[%clk 0:02:02]}  a5 {[%clk 0:02:52]} 19. Nd3 {[%clk 0:02:00]}  Na6 {[%clk 0:02:52]} 20. Qc3 {[%clk 0:01:57]}  Nb4 {[%clk 0:02:52]} 21. Nf4 {[%clk 0:01:52]}  Bd7 {[%clk 0:02:50]} 22. h4 {[%clk 0:01:50]}  f6 {[%clk 0:02:39]} 23. Bh3 {[%clk 0:01:46]}  Bxh3 {[%clk 0:01:32]} 24. Nxh3 {[%clk 0:01:47]}  e5 {[%clk 0:01:32]} 25. dxe6 {[%clk 0:01:45]}  Qe8 {[%clk 0:01:33]} 26. Nf4 {[%clk 0:01:43]}  g5 {[%clk 0:01:33]} 27. hxg5 {[%clk 0:01:36]}  fxg5 {[%clk 0:01:33]} 28. Nd5 {[%clk 0:01:26]}  Qxe6 {[%clk 0:01:34]} 29. Rae1 {[%clk 0:01:21]}  Qe5 {[%clk 0:01:03]} 30. Qxe5 {[%clk 0:00:56]}  dxe5 {[%clk 0:01:04]} 31. Kg2 {[%clk 0:00:56]}  Kg7 {[%clk 0:00:52]} 32. Ne3 {[%clk 0:00:53]}  Nc6 {[%clk 0:00:44]} 33. Nf5+ {[%clk 0:00:52]}  Kg6 {[%clk 0:00:45]} 34. Rh1 {[%clk 0:00:51]}  h5 {[%clk 0:00:46]} 35. Rxh5 {[%clk 0:00:47]}  Rxf5 {[%clk 0:00:34]} 36. Reh1 {[%clk 0:00:37]}  Rxf2+ {[%clk 0:00:21]} 37. Kxf2 {[%clk 0:00:37]}  Rb2+ {[%clk 0:00:22]} 38. Kf3 {[%clk 0:00:34]}  Nd4+ {[%clk 0:00:18]} 39. Kg4 {[%clk 0:00:34]}  Rb4 {[%clk 0:00:07]} 40. Rxg5+ {[%clk 0:00:33]}  Kf7 {[%clk 0:00:05]} 41. Rh7+ {[%clk 0:00:32]}  Kf6 {[%clk 0:00:05]} 42. Rh6+ {[%clk 0:00:32]}  Kf7 {[%clk 0:00:06]} 43. Rxe5 {[%clk 0:00:29]}  Rxc4 {[%clk 0:00:06]} 44. Rd5 {[%clk 0:00:29]}  Nc2 {[%clk 0:00:02]} 45. Rd7+ {[%clk 0:00:27]}  Ke8 {[%clk 0:00:02]} 46. Ra7 {[%clk 0:00:27]}  Ne3+ {[%clk 0:00:00]} 47. Kf3 {[%clk 0:00:26]} 1-0


[Site "https://www.chess.com"]